[Event "Swiss-Ch 2017"]
[Site "Graechen"]
[Date "2017.07.16"]
[Round "4"]
[White "Ekstroem, Roland"]
[Black "Cebalo, Miso"]
[Result "1/2-1/2"]
[ECO "A56"]
[WhiteElo "2376"]
[BlackElo "2303"]
[Annotator "RC"]
[PlyCount "55"]
[EventDate "2017.??.??"]
[EventCountry "SUI"]
[SourceTitle "playchess.com"]
[Source "ChessBase"]
[SourceQuality "1"]
[TimeControl "40/5400+30:1800+30"]

1. d4 {[%emt 0:00:00]} Nf6 {[%emt 0:00:11]} 2. c4 {[%emt 0:00:00]} c5 {[%emt 0:00:46]} 3. Nf3 {[%emt 0:00:00]} cxd4 {[%emt 0:00:13]} 4. Nxd4 {[%emt 0:00:01]} Nc6 {[%emt 0:00:31]} 5. Nc3 {[%emt 0:00:11]} g6 {[%emt 0:00:36]} 6. e4 {[%emt 0:00:12]} Nxd4 {[%emt 0:00:10]} 7. Qxd4 {[%emt 0:00:03]} d6 {[%emt 0:00:10]} 8. Be2 {[%emt 0:00:21]} Bg7 {[%emt 0:00:13]} 9. Be3 {[%emt 0:00:16]} O-O {[%emt 0:00:08]} 10. Qd2 {[%emt 0:00:16]} a5 {[%emt 0:00:23]} 11. Rd1 {[%emt 0:00:47]} a4 {[%emt 0:01:48]} 12. O-O {[%emt 0:02:31]} Qa5 {[%emt 0:03:01]} 13. Bd4 {[%emt 0:02:19]} Be6 {[%emt 0:02:23]} 14. Qe3 {[%emt 0:09:48]} Rfc8 {[%emt 0:25:36]} 15. Nd5 {[%emt 0:05:03]} Bxd5 {[%emt 0:04:05]} 16. exd5 {[%emt 0:01:48]} Re8 {[%emt 0:05:19]} 17. Rfe1 {[%emt 0:06:45]} Nd7 {[%emt 0:02:25]} 18. Bxg7 {[%emt 0:03:15]} Kxg7 {[%emt 0:00:09]} 19. Bf1 {[%emt 0:01:07]} Qc5 {[%emt 0:00:25]} 20. Rd4 {[%emt 0:06:37]} Nf6 {[%emt 0:09:57]} 21. Qd2 {[%emt 0:01:07]} Qa5 {[%emt 0:02:28]} 22. Qd1 {[%emt 0:01:26]} Qb4 {[%emt 0:01:54]} 23. Re2 {[%emt 0:02:10]} Rac8 {[%emt 0:08:44]} 24. Rc2 {[%emt 0:02:07]} Rc5 {[%emt 0:06:17]} 25. Rcd2 {[%emt 0:07:26]} Rec8 {[%emt 0:08:00]} 26. Qe2 {[%emt 0:05:41]} Qb6 {[%emt 0:03:26]} 27. Rf4 {[%emt 0:02:57]} R5c7 {[%emt 0:02:54]} 28. h3 {[%emt 0:05:08]} 1/2-1/2

[Event "Swiss-Ch 2017"]
[Site "Graechen"]
[Date "2017.07.16"]
[Round "4"]
[White "Riehle, Marco"]
[Black "Baenziger, Fabian"]
[Result "1/2-1/2"]
[ECO "B56"]
[WhiteElo "2236"]
[BlackElo "2354"]
[Annotator "RC"]
[PlyCount "71"]
[EventDate "2017.??.??"]
[EventCountry "SUI"]
[SourceTitle "playchess.com"]
[Source "ChessBase"]
[SourceQuality "1"]
[TimeControl "40/5400+30:1800+30"]

1. e4 {[%emt 0:00:00]} c5 {[%emt 0:00:14]} 2. Nf3 {[%emt 0:00:31]} Nc6 {[%emt 0:00:26]} 3. d4 {[%emt 0:00:27]} cxd4 {[%emt 0:00:06]} 4. Nxd4 {[%emt 0:00:05]} Nf6 {[%emt 0:00:09]} 5. Nc3 {[%emt 0:00:05]} d6 {[%emt 0:00:14]} 6. f3 {[%emt 0:07:34]} e5 {[%emt 0:07:48]} 7. Nb3 {[%emt 0:01:03]} Be7 {[%emt 0:00:20]} 8. Be3 {[%emt 0:01:34]} O-O {[%emt 0:00:17]} 9. Qd2 {[%emt 0:00:23]} Be6 {[%emt 0:00:56]} 10. O-O-O {[%emt 0:00:51]} a5 {[%emt 0:00:16]} 11. Bb5 {[%emt 0:06:08]} Qc7 {[%emt 0:06:29]} 12. Na4 {[%emt 0:08:43]} d5 {[%emt 0:10:58]} 13. Bb6 {[%emt 0:11:49]} Qc8 {[%emt 0:02:07]} 14. exd5 {[%emt 0:04:01]} Nxd5 {[%emt 0:02:52]} 15. Kb1 {[%emt 0:01:06]} Na7 {[%emt 0:20:23]} 16. Qe2 {[%emt 0:13:48]} Nb4 {[%emt 0:07:20]} 17. Bd3 {[%emt 0:06:12]} Nxd3 {[%emt 0:03:11]} 18. Qxd3 {[%emt 0:01:18]} Bf5 {[%emt 0:00:18]} 19. Qe2 {[%emt 0:00:51]} Qc6 {[%emt 0:01:05]} 20. Bc5 {[%emt 0:01:35]} Bxc5 {[%emt 0:00:54]} 21. Nbxc5 {[%emt 0:00:07]} Rfe8 {[%emt 0:02:08]} 22. g4 {[%emt 0:02:37]} Bg6 {[%emt 0:00:41]} 23. Qf2 {[%emt 0:03:44]} b6 {[%emt 0:09:49]} 24. Nd7 {[%emt 0:01:02]} Qxa4 {[%emt 0:01:36]} 25. Nxb6 {[%emt 0:00:12]} Qc6 {[%emt 0:01:29]} 26. Nxa8 {[%emt 0:00:08]} Qxa8 {[%emt 0:00:03]} 27. h4 {[%emt 0:02:20]} h5 {[%emt 0:01:46]} 28. Rhg1 {[%emt 0:06:18]} Rc8 {[%emt 0:00:31]} 29. Rd2 {[%emt 0:00:36]} hxg4 {[%emt 0:03:31]} 30. Rxg4 {[%emt 0:01:39]} Nb5 {[%emt 0:01:27]} 31. h5 {[%emt 0:02:26]} Bxh5 {[%emt 0:02:38]} 32. Rg5 {[%emt 0:00:22]} Bg6 {[%emt 0:00:52]} 33. Rxe5 {[%emt 0:00:43]} Qb8 {[%emt 0:00:55]} 34. Rc5 {[%emt 0:01:16]} Na3+ {[%emt 0:01:17]} 35. Kc1 {[%emt 0:00:45]} Nxc2 {[%emt 0:02:57]} 36. Rdxc2 {[%emt 0:02:01]} 1/2-1/2

[Event "Swiss-Ch 2017"]
[Site "Graechen"]
[Date "2017.07.17"]
[Round "5"]
[White "Sedina, Elena"]
[Black "Ekstroem, Roland"]
[Result "1/2-1/2"]
[ECO "C54"]
[WhiteElo "2267"]
[BlackElo "2376"]
[Annotator "NA"]
[PlyCount "28"]
[EventDate "2017.??.??"]
[EventCountry "SUI"]
[SourceTitle "playchess.com"]
[Source "ChessBase"]
[SourceQuality "1"]
[TimeControl "40/5400+30:1800+30"]

1. e4 {[%emt 0:00:00]} e5 {[%emt 0:00:06]} 2. Nf3 {[%emt 0:00:00]} Nc6 {[%emt 0:00:07]} 3. Bc4 {[%emt 0:00:39]} Bc5 {[%emt 0:00:14]} 4. O-O {[%emt 0:00:46]} Nf6 {[%emt 0:00:39]} 5. d3 {[%emt 0:00:13]} d6 {[%emt 0:03:15]} 6. c3 {[%emt 0:01:44]} O-O {[%emt 0:01:41]} 7. Nbd2 {[%emt 0:06:08]} a6 {[%emt 0:01:06]} 8. a4 {[%emt 0:03:43]} Ba7 {[%emt 0:01:00]} 9. h3 {[%emt 0:07:03]} Ne7 {[%emt 0:02:04]} 10. Re1 {[%emt 0:06:21]} Ng6 {[%emt 0:00:37]} 11. Nf1 {[%emt 0:06:46]} c6 {[%emt 0:03:34]} 12. Bb3 {[%emt 0:08:20]} Be6 {[%emt 0:07:44]} 13. d4 {[%emt 0:10:00]} Re8 {[%emt 0:09:36]} 14. Ng3 {[%emt 0:01:40]} Bxb3 {[%emt 0:17:18]} 1/2-1/2

[Event "Swiss-Ch 2017"]
[Site "Graechen"]
[Date "2017.07.20"]
[Round "8"]
[White "Raetsky, Alexander"]
[Black "Sedina, Elena"]
[Result "1/2-1/2"]
[ECO "D15"]
[WhiteElo "2385"]
[BlackElo "2316"]
[Annotator "NA"]
[PlyCount "79"]
[EventDate "2017.??.??"]
[EventCountry "SUI"]
[SourceTitle "playchess.com"]
[Source "ChessBase"]
[SourceQuality "1"]
[TimeControl "40/5400+30:1800+30"]

1. c4 {[%emt 0:00:00]} c6 {[%emt 0:01:08]} 2. Nf3 {[%emt 0:01:14]} d5 {[%emt 0:00:20]} 3. e3 {[%emt 0:00:21]} Nf6 {[%emt 0:00:32]} 4. Nc3 {[%emt 0:00:11]} a6 {[%emt 0:16:18]} 5. d4 {[%emt 0:13:24]} Bf5 {[%emt 0:03:12]} 6. Bd2 {[%emt 0:07:50] D15: Slav Defence: 4 Nc3 a6 and gambit lines after 4 Nc3 dxc4} (6. Be2 e6 7. Nh4 Bg6 8. O-O Nbd7 9. g3 Be7 10. Nxg6 hxg6 11. Qc2 dxc4 12. Bxc4 Qa5 13. f3 c5 {½-½ (67) Svidler,P (2755)-Malakhov,V (2712) Sochi 2017}) 6... e6 {[%emt 0:05:44]} 7. c5 {[%emt 0:30:20]} Nbd7 {[%emt 0:11:21] LiveBook: 3 Games} 8. Be2 {[%emt 0:00:59]} Ne4 {[%emt 0:07:59]} 9. O-O {[%emt 0:01:12]} Nxd2 $146 {[%emt 0:23:27]} ({Predecessor:} 9... Be7 10. b4 Bf6 11. Qb3 O-O 12. Rfd1 e5 13. Nxe4 Bxe4 {1-0 (35) Socko,B (2621)-Pavlovic,M (2497) Biel 2006}) 10. Nxd2 {[%emt 0:01:59]} e5 {[%emt 0:05:12]} 11. e4 {[%emt 0:10:38]} exd4 {[%emt 0:01:24]} 12. Nxd5 {[%emt 0:00:12]} Be6 {[%emt 0:05:32]} 13. Nf4 {[%emt 0:03:45]} Bxc5 {[%emt 0:12:19]} 14. Nxe6 {[%emt 0:05:55]} fxe6 {[%emt 0:00:01]} 15. Qb3 {[%emt 0:14:03]} O-O {[%emt 0:00:11]} 16. Rac1 {[%emt 0:00:09]} Ba7 {[%emt 0:02:29]} 17. Bc4 {[%emt 0:02:16]} (17. Qxe6+ $11 {remains equal.} Kh8 18. Bd3) 17... Nc5 {[%emt 0:00:45]} 18. Qh3 $1 {[%emt 0:01:57]} Qg5 {[%emt 0:00:16]} 19. Nf3 {[%emt 0:01:00]} Qh6 {[%emt 0:01:11]} 20. Qxh6 {[%emt 0:00:48]} gxh6 {[%emt 0:00:01]} 21. Nxd4 {[%emt 0:01:01]} Kh8 {[%emt 0:00:33]} (21... Rae8 $11) 22. Nxe6 {[%emt 0:00:42]} Nxe6 {[%emt 0:00:39]} 23. Bxe6 {[%emt 0:00:01]} Rad8 {[%emt 0:00:18] [#]} 24. Rc2 $1 {[%emt 0:00:32]} Rd4 {[%emt 0:00:47]} 25. Bf5 {[%emt 0:00:26]} Rfd8 {[%emt 0:00:12]} 26. g3 $11 {[%emt 0:01:07]} Rd2 {[%emt 0:00:07]} 27. Rxd2 {[%emt 0:00:33]} Rxd2 {[%emt 0:00:01]} 28. b3 {[%emt 0:00:39]} Rxa2 {[%emt 0:00:14]} 29. Kg2 {[%emt 0:00:26]} Bd4 {[%emt 0:00:24]} 30. e5 {[%emt 0:00:38]} Bxe5 {[%emt 0:00:15]} 31. Rd1 {[%emt 0:00:05]} Kg7 {[%emt 0:01:43]} 32. Rd7+ {[%emt 0:00:16]} Kf6 {[%emt 0:00:02]} 33. Be4 {[%emt 0:00:13]} c5 {[%emt 0:01:48]} 34. Rxb7 {[%emt 0:01:15]} Bd4 {[%emt 0:00:05]} 35. Kh3 {[%emt 0:00:37]} Rxf2 {[%emt 0:00:08]} 36. Rxh7 {[%emt 0:00:31]} Ke5 {[%emt 0:00:34]} 37. Bb7 {[%emt 0:00:25]} Rf6 {[%emt 0:00:07]} 38. Kg4 {[%emt 0:00:38]} a5 {[%emt 0:00:34]} 39. Re7+ {[%emt 0:00:19]} Re6 {[%emt 0:00:13]} 40. Rxe6+ {[%emt 0:00:35]} 1/2-1/2